[Event "Titled Tuesday Blitz July 25 Late 2023"]
[White "Molenda, Marcin"]
[Black "Santos Ruiz, Miguel"]
[WhiteFideId "1173065"]
[BlackFideId "22291482"]
[WhiteElo "2517"]
[BlackElo "2756"]
[Result "1-0"]
[Round "4"]
[TimeControl "180+2"]
[Date "2023.07.25"]
[WhiteClock "0:01:47"]
[BlackClock "0:00:20"]
[Board "54"]

1. e4 {[%clk 0:03:00]}  c6 {[%clk 0:02:59]} 2. Nf3 {[%clk 0:02:55]}  d5 {[%clk 0:03:00]} 3. Nc3 {[%clk 0:02:55]}  dxe4 {[%clk 0:02:59]} 4. Nxe4 {[%clk 0:02:55]}  Nf6 {[%clk 0:02:59]} 5. Qe2 {[%clk 0:02:52]}  Na6 {[%clk 0:02:59]} 6. Nxf6+ {[%clk 0:02:49]}  gxf6 {[%clk 0:02:59]} 7. d4 {[%clk 0:02:50]}  Nc7 {[%clk 0:02:41]} 8. g3 {[%clk 0:02:46]}  Bg4 {[%clk 0:02:40]} 9. c3 {[%clk 0:02:45]}  e6 {[%clk 0:02:33]} 10. Bg2 {[%clk 0:02:45]}  Be7 {[%clk 0:02:32]} 11. Bf4 {[%clk 0:02:42]}  Nd5 {[%clk 0:02:30]} 12. Bd2 {[%clk 0:02:42]}  a5 {[%clk 0:02:14]} 13. O-O {[%clk 0:02:40]}  h5 {[%clk 0:02:12]} 14. c4 {[%clk 0:02:34]}  Nb4 {[%clk 0:02:09]} 15. Bc3 {[%clk 0:02:31]}  h4 {[%clk 0:02:00]} 16. a3 {[%clk 0:02:30]}  Na6 {[%clk 0:01:59]} 17. Rad1 {[%clk 0:02:23]}  Nc7 {[%clk 0:01:56]} 18. Qe3 {[%clk 0:02:18]}  Qd7 {[%clk 0:01:37]} 19. Rfe1 {[%clk 0:02:15]}  a4 {[%clk 0:01:33]} 20. Qf4 {[%clk 0:02:08]}  f5 {[%clk 0:01:14]} 21. Ne5 {[%clk 0:02:06]}  Qd6 {[%clk 0:01:12]} 22. c5 {[%clk 0:02:02]}  Qd8 {[%clk 0:01:08]} 23. Nxg4 {[%clk 0:02:01]}  fxg4 {[%clk 0:01:07]} 24. d5 {[%clk 0:02:01]}  cxd5 {[%clk 0:00:53]} 25. Bxh8 {[%clk 0:02:00]}  h3 {[%clk 0:00:52]} 26. Bf1 {[%clk 0:01:54]}  Kd7 {[%clk 0:00:46]} 27. Be5 {[%clk 0:01:51]}  Bxc5 {[%clk 0:00:44]} 28. Bxc7 {[%clk 0:01:48]}  Qxc7 {[%clk 0:00:20]} 29. Qxf7+ {[%clk 0:01:47]} 1-0


[Site "https://www.chess.com"]

[Event "Titled Tuesday Blitz July 25 Late 2023"]
[White "Taboas Rodriguez, Daniel"]
[Black "Koellner, Ruben Gideon"]
[WhiteFideId "2208466"]
[BlackFideId "12993093"]
[WhiteElo "2514"]
[BlackElo "2712"]
[Result "0-1"]
[Round "4"]
[TimeControl "180+2"]
[Date "2023.07.25"]
[WhiteClock "0:00:00"]
[BlackClock "0:00:34"]
[Board "58"]

1. d4 {[%clk 0:02:59]}  d6 {[%clk 0:03:00]} 2. Nf3 {[%clk 0:02:57]}  Nf6 {[%clk 0:02:59]} 3. c4 {[%clk 0:02:57]}  g6 {[%clk 0:02:59]} 4. Nc3 {[%clk 0:02:57]}  Bf5 {[%clk 0:03:00]} 5. d5 {[%clk 0:02:57]}  e5 {[%clk 0:02:59]} 6. dxe6 {[%clk 0:02:51]}  Bxe6 {[%clk 0:03:00]} 7. e4 {[%clk 0:02:51]}  Bg7 {[%clk 0:02:59]} 8. Be2 {[%clk 0:02:51]}  O-O {[%clk 0:03:00]} 9. O-O {[%clk 0:02:51]}  Nc6 {[%clk 0:03:00]} 10. h3 {[%clk 0:02:43]}  Ne5 {[%clk 0:03:00]} 11. Nxe5 {[%clk 0:02:22]}  dxe5 {[%clk 0:03:01]} 12. Be3 {[%clk 0:02:19]}  Qxd1 {[%clk 0:02:55]} 13. Rfxd1 {[%clk 0:02:18]}  c6 {[%clk 0:02:56]} 14. Bc5 {[%clk 0:02:13]}  Rfe8 {[%clk 0:02:55]} 15. Bd6 {[%clk 0:02:13]}  Nd7 {[%clk 0:02:55]} 16. b4 {[%clk 0:02:10]}  Bf8 {[%clk 0:02:54]} 17. a3 {[%clk 0:02:05]}  Bxd6 {[%clk 0:02:53]} 18. Rxd6 {[%clk 0:02:04]}  Kf8 {[%clk 0:02:53]} 19. Rad1 {[%clk 0:02:00]}  Ke7 {[%clk 0:02:53]} 20. c5 {[%clk 0:02:01]}  Red8 {[%clk 0:02:50]} 21. Kh2 {[%clk 0:01:54]}  f5 {[%clk 0:02:45]} 22. g3 {[%clk 0:01:41]}  Nf6 {[%clk 0:02:45]} 23. exf5 {[%clk 0:01:32]}  gxf5 {[%clk 0:02:44]} 24. f4 {[%clk 0:01:28]}  e4 {[%clk 0:02:40]} 25. Kg2 {[%clk 0:01:22]}  Rxd6 {[%clk 0:02:39]} 26. Rxd6 {[%clk 0:01:21]}  a5 {[%clk 0:02:36]} 27. b5 {[%clk 0:01:16]}  Rc8 {[%clk 0:02:32]} 28. bxc6 {[%clk 0:01:15]}  Rxc6 {[%clk 0:02:33]} 29. Rxc6 {[%clk 0:01:12]}  bxc6 {[%clk 0:02:34]} 30. Bd1 {[%clk 0:00:59]}  Nd7 {[%clk 0:02:33]} 31. Na4 {[%clk 0:00:59]}  Bc4 {[%clk 0:02:29]} 32. Kf2 {[%clk 0:00:59]}  Ke6 {[%clk 0:02:24]} 33. Ke3 {[%clk 0:00:53]}  Bf1 {[%clk 0:01:57]} 34. h4 {[%clk 0:00:45]}  Bb5 {[%clk 0:01:54]} 35. g4 {[%clk 0:00:38]}  Nf6 {[%clk 0:01:35]} 36. Nc3 {[%clk 0:00:26]}  fxg4 {[%clk 0:01:04]} 37. Nxe4 {[%clk 0:00:26]}  Nd5+ {[%clk 0:01:04]} 38. Kd4 {[%clk 0:00:26]}  Nxf4 {[%clk 0:00:53]} 39. Bxg4+ {[%clk 0:00:25]}  Ke7 {[%clk 0:00:54]} 40. Nd6 {[%clk 0:00:21]}  Ba4 {[%clk 0:00:53]} 41. Bf5 {[%clk 0:00:16]}  h6 {[%clk 0:00:50]} 42. Be4 {[%clk 0:00:14]}  Ne6+ {[%clk 0:00:49]} 43. Kc4 {[%clk 0:00:12]}  Kf6 {[%clk 0:00:49]} 44. Nf5 {[%clk 0:00:08]}  Bb5+ {[%clk 0:00:47]} 45. Kc3 {[%clk 0:00:06]}  Nxc5 {[%clk 0:00:48]} 46. Bc2 {[%clk 0:00:06]}  Na4+ {[%clk 0:00:41]} 47. Kd4 {[%clk 0:00:00]}  Kg6 {[%clk 0:00:34]} 0-1


[Site "https://www.chess.com"]

[Event "Titled Tuesday Blitz July 25 Late 2023"]
[White "Gasparyan, David"]
[Black "Goltsev, Dmitry"]
[WhiteFideId "13311980"]
[BlackFideId "24176710"]
[WhiteElo "2512"]
[BlackElo "2687"]
[Result "1-0"]
[Round "4"]
[TimeControl "180+2"]
[Date "2023.07.25"]
[WhiteClock "0:00:30"]
[BlackClock "0:00:02"]
[Board "61"]

1. Nf3 {[%clk 0:02:56]}  d5 {[%clk 0:02:59]} 2. d4 {[%clk 0:02:51]}  c6 {[%clk 0:02:58]} 3. Bf4 {[%clk 0:02:50]}  Nf6 {[%clk 0:02:59]} 4. e3 {[%clk 0:02:50]}  Nbd7 {[%clk 0:02:59]} 5. Bd3 {[%clk 0:02:50]}  g6 {[%clk 0:03:00]} 6. Nbd2 {[%clk 0:02:47]}  Bg7 {[%clk 0:03:00]} 7. c4 {[%clk 0:02:46]}  O-O {[%clk 0:03:00]} 8. O-O {[%clk 0:02:45]}  Re8 {[%clk 0:02:55]} 9. a4 {[%clk 0:02:34]}  Nf8 {[%clk 0:02:44]} 10. a5 {[%clk 0:02:33]}  Ne6 {[%clk 0:02:38]} 11. Bg3 {[%clk 0:02:33]}  h6 {[%clk 0:02:19]} 12. h3 {[%clk 0:02:32]}  Ng5 {[%clk 0:02:18]} 13. Qc2 {[%clk 0:02:22]}  Nh5 {[%clk 0:02:00]} 14. Be5 {[%clk 0:02:19]}  Bxe5 {[%clk 0:01:25]} 15. Nxe5 {[%clk 0:02:18]}  Ng7 {[%clk 0:01:25]} 16. f4 {[%clk 0:02:09]}  N5e6 {[%clk 0:01:14]} 17. Ndf3 {[%clk 0:01:57]}  Nf8 {[%clk 0:01:13]} 18. Nh4 {[%clk 0:01:56]}  Be6 {[%clk 0:00:44]} 19. c5 {[%clk 0:01:50]}  Qc8 {[%clk 0:00:40]} 20. Rf3 {[%clk 0:01:47]}  Nf5 {[%clk 0:00:34]} 21. Nxf5 {[%clk 0:01:40]}  Bxf5 {[%clk 0:00:30]} 22. Bxf5 {[%clk 0:01:41]}  Qxf5 {[%clk 0:00:30]} 23. Qxf5 {[%clk 0:01:41]}  gxf5 {[%clk 0:00:31]} 24. Rg3+ {[%clk 0:01:42]}  Kh7 {[%clk 0:00:18]} 25. a6 {[%clk 0:01:42]}  Reb8 {[%clk 0:00:14]} 26. Ra2 {[%clk 0:01:31]}  f6 {[%clk 0:00:12]} 27. axb7 {[%clk 0:01:31]}  Rxb7 {[%clk 0:00:11]} 28. Nxc6 {[%clk 0:01:32]}  Ne6 {[%clk 0:00:07]} 29. b4 {[%clk 0:01:26]}  a6 {[%clk 0:00:06]} 30. Rf3 {[%clk 0:01:24]}  Nd8 {[%clk 0:00:06]} 31. Nxd8 {[%clk 0:01:22]}  Rxd8 {[%clk 0:00:07]} 32. Rxa6 {[%clk 0:01:20]}  Rxb4 {[%clk 0:00:07]} 33. Ra7 {[%clk 0:01:20]}  Re8 {[%clk 0:00:07]} 34. Rf1 {[%clk 0:01:18]}  Kg6 {[%clk 0:00:07]} 35. Rc1 {[%clk 0:01:18]}  Kf7 {[%clk 0:00:07]} 36. c6 {[%clk 0:01:18]}  Rc8 {[%clk 0:00:07]} 37. Rc5 {[%clk 0:01:15]}  Ke6 {[%clk 0:00:07]} 38. Kf2 {[%clk 0:01:13]}  Kd6 {[%clk 0:00:06]} 39. Rd7+ {[%clk 0:01:11]}  Ke6 {[%clk 0:00:06]} 40. Rdxd5 {[%clk 0:01:09]}  Rxc6 {[%clk 0:00:06]} 41. Rxf5 {[%clk 0:01:08]}  Rb2+ {[%clk 0:00:06]} 42. Kf3 {[%clk 0:01:07]}  Ra6 {[%clk 0:00:07]} 43. g4 {[%clk 0:01:01]}  Raa2 {[%clk 0:00:06]} 44. Ke4 {[%clk 0:01:00]}  Re2 {[%clk 0:00:06]} 45. Rc3 {[%clk 0:00:57]}  Rh2 {[%clk 0:00:05]} 46. Rh5 {[%clk 0:00:57]}  Rag2 {[%clk 0:00:05]} 47. Rc6+ {[%clk 0:00:50]}  Kd7 {[%clk 0:00:05]} 48. Ra6 {[%clk 0:00:48]}  Rb2 {[%clk 0:00:04]} 49. Rxh6 {[%clk 0:00:48]}  Rb3 {[%clk 0:00:04]} 50. Ra7+ {[%clk 0:00:45]}  Kd6 {[%clk 0:00:04]} 51. Kf3 {[%clk 0:00:40]}  Rd2 {[%clk 0:00:03]} 52. Ra6+ {[%clk 0:00:37]}  Kd7 {[%clk 0:00:03]} 53. Ra1 {[%clk 0:00:37]}  Rdd3 {[%clk 0:00:02]} 54. Re1 {[%clk 0:00:37]}  Rxd4 {[%clk 0:00:03]} 55. h4 {[%clk 0:00:36]}  Rd2 {[%clk 0:00:04]} 56. h5 {[%clk 0:00:36]}  Rbb2 {[%clk 0:00:04]} 57. Rh8 {[%clk 0:00:35]}  Rf2+ {[%clk 0:00:04]} 58. Ke4 {[%clk 0:00:36]}  Rg2 {[%clk 0:00:05]} 59. Rg8 {[%clk 0:00:34]}  Rb4+ {[%clk 0:00:05]} 60. Kf3 {[%clk 0:00:33]}  Rbb2 {[%clk 0:00:06]} 61. Rd1+ {[%clk 0:00:33]}  Ke6 {[%clk 0:00:05]} 62. h6 {[%clk 0:00:33]}  Rh2 {[%clk 0:00:05]} 63. Rh8 {[%clk 0:00:33]}  Rbf2+ {[%clk 0:00:04]} 64. Ke4 {[%clk 0:00:33]}  Rfg2 {[%clk 0:00:05]} 65. f5+ {[%clk 0:00:31]}  Kf7 {[%clk 0:00:05]} 66. Rdd8 {[%clk 0:00:31]}  e6 {[%clk 0:00:02]} 67. Rh7# {[%clk 0:00:30]} 1-0


[Site "https://www.chess.com"]

[Event "Titled Tuesday Blitz July 25 Late 2023"]
[White "Bryakin, Mikhail"]
[Black "Womacka, Mathias"]
[WhiteFideId "4165314"]
[BlackFideId "4611390"]
[WhiteElo "2685"]
[BlackElo "2509"]
[Result "0-1"]
[Round "4"]
[TimeControl "180+2"]
[Date "2023.07.25"]
[WhiteClock "0:01:52"]
[BlackClock "0:00:21"]
[Board "63"]

1. e4 {[%clk 0:02:57]}  c5 {[%clk 0:02:59]} 2. d4 {[%clk 0:02:57]}  cxd4 {[%clk 0:02:58]} 3. Qxd4 {[%clk 0:02:58]}  Nc6 {[%clk 0:02:57]} 4. Qd3 {[%clk 0:02:52]}  Nf6 {[%clk 0:02:57]} 5. Nc3 {[%clk 0:02:53]}  g6 {[%clk 0:02:53]} 6. Nf3 {[%clk 0:02:52]}  Bg7 {[%clk 0:02:53]} 7. Be2 {[%clk 0:02:52]}  d6 {[%clk 0:02:52]} 8. O-O {[%clk 0:02:53]}  O-O {[%clk 0:02:51]} 9. Nd5 {[%clk 0:02:54]}  Nxd5 {[%clk 0:02:37]} 10. exd5 {[%clk 0:02:54]}  Bf5 {[%clk 0:02:34]} 11. Qb3 {[%clk 0:02:42]}  Nd4 {[%clk 0:02:13]} 12. Nxd4 {[%clk 0:02:41]}  Bxd4 {[%clk 0:02:14]} 13. c3 {[%clk 0:02:40]}  Bg7 {[%clk 0:02:13]} 14. Qxb7 {[%clk 0:02:39]}  a5 {[%clk 0:02:06]} 15. Qb3 {[%clk 0:02:33]}  a4 {[%clk 0:02:06]} 16. Qa3 {[%clk 0:02:33]}  Qa5 {[%clk 0:01:58]} 17. Be3 {[%clk 0:02:32]}  Qxd5 {[%clk 0:01:55]} 18. Bf3 {[%clk 0:02:31]}  Be4 {[%clk 0:01:55]} 19. Rfd1 {[%clk 0:02:32]}  Qb7 {[%clk 0:01:53]} 20. Bxe4 {[%clk 0:02:32]}  Qxe4 {[%clk 0:01:54]} 21. Bd4 {[%clk 0:02:33]}  Rfb8 {[%clk 0:01:44]} 22. Bxg7 {[%clk 0:02:33]}  Kxg7 {[%clk 0:01:43]} 23. Rd2 {[%clk 0:02:33]}  Rb5 {[%clk 0:01:34]} 24. Rad1 {[%clk 0:02:28]}  Rab8 {[%clk 0:01:30]} 25. f3 {[%clk 0:02:21]}  Qb7 {[%clk 0:01:29]} 26. Qxa4 {[%clk 0:02:13]}  Rxb2 {[%clk 0:01:28]} 27. Qd4+ {[%clk 0:02:14]}  Kg8 {[%clk 0:01:27]} 28. h4 {[%clk 0:02:14]}  Rxd2 {[%clk 0:01:25]} 29. Rxd2 {[%clk 0:02:15]}  Qb6 {[%clk 0:01:22]} 30. a4 {[%clk 0:02:08]}  Qxd4+ {[%clk 0:01:20]} 31. cxd4 {[%clk 0:02:09]}  Kf8 {[%clk 0:01:12]} 32. Ra2 {[%clk 0:02:09]}  Ke8 {[%clk 0:01:12]} 33. a5 {[%clk 0:02:10]}  Kd7 {[%clk 0:01:12]} 34. a6 {[%clk 0:02:10]}  Ra8 {[%clk 0:01:08]} 35. a7 {[%clk 0:02:09]}  Kc7 {[%clk 0:01:07]} 36. Kf2 {[%clk 0:02:08]}  Kb6 {[%clk 0:01:06]} 37. Rb2+ {[%clk 0:02:06]}  Kxa7 {[%clk 0:01:04]} 38. Ke3 {[%clk 0:02:07]}  Rb8 {[%clk 0:01:00]} 39. Rc2 {[%clk 0:02:07]}  Kb7 {[%clk 0:00:59]} 40. Kf4 {[%clk 0:02:07]}  Rc8 {[%clk 0:00:56]} 41. Re2 {[%clk 0:02:08]}  e6 {[%clk 0:00:53]} 42. Kg5 {[%clk 0:02:08]}  Rc4 {[%clk 0:00:51]} 43. Rd2 {[%clk 0:02:01]}  Kc6 {[%clk 0:00:42]} 44. d5+ {[%clk 0:01:58]}  exd5 {[%clk 0:00:41]} 45. g3 {[%clk 0:01:58]}  Rc3 {[%clk 0:00:32]} 46. Rf2 {[%clk 0:01:56]}  d4 {[%clk 0:00:32]} 47. Kh6 {[%clk 0:01:56]}  d3 {[%clk 0:00:32]} 48. Rd2 {[%clk 0:01:56]}  Kd5 {[%clk 0:00:31]} 49. Kxh7 {[%clk 0:01:57]}  Kd4 {[%clk 0:00:32]} 50. Kg7 {[%clk 0:01:58]}  Ke3 {[%clk 0:00:30]} 51. Rd1 {[%clk 0:01:58]}  Ke2 {[%clk 0:00:21]} 52. Rh1 {[%clk 0:01:58]}  d2 {[%clk 0:00:21]} 53. Kxf7 {[%clk 0:01:57]}  Rxf3+ {[%clk 0:00:21]} 54. Kxg6 {[%clk 0:01:55]}  Rxg3+ {[%clk 0:00:21]} 55. Kf5 {[%clk 0:01:54]}  d1=Q {[%clk 0:00:20]} 56. Rxd1 {[%clk 0:01:52]}  Kxd1 {[%clk 0:00:21]} 0-1


[Site "https://www.chess.com"]

[Event "Titled Tuesday Blitz July 25 Late 2023"]
[White "Velikanov, Alexander"]
[Black "Gulamali, Kazim"]
[WhiteFideId "2039290"]
[BlackFideId "2024764"]
[WhiteElo "2675"]
[BlackElo "2492"]
[Result "0-1"]
[Round "4"]
[TimeControl "180+2"]
[Date "2023.07.25"]
[WhiteClock "0:00:00"]
[BlackClock "0:00:10"]
[Board "66"]

1. e4 {[%clk 0:03:00]}  e5 {[%clk 0:02:56]} 2. Nf3 {[%clk 0:03:00]}  Nc6 {[%clk 0:02:57]} 3. g3 {[%clk 0:02:55]}  Bc5 {[%clk 0:02:50]} 4. Bg2 {[%clk 0:02:54]}  d6 {[%clk 0:02:49]} 5. c3 {[%clk 0:02:50]}  Nf6 {[%clk 0:02:44]} 6. d4 {[%clk 0:02:42]}  exd4 {[%clk 0:02:44]} 7. cxd4 {[%clk 0:02:43]}  Bb4+ {[%clk 0:02:45]} 8. Bd2 {[%clk 0:02:43]}  Nxe4 {[%clk 0:02:23]} 9. Bxb4 {[%clk 0:02:42]}  Nxb4 {[%clk 0:02:24]} 10. Qa4+ {[%clk 0:02:42]}  Nc6 {[%clk 0:02:24]} 11. d5 {[%clk 0:02:42]}  Nc5 {[%clk 0:02:25]} 12. Qb5 {[%clk 0:02:40]}  a6 {[%clk 0:02:01]} 13. Qe2+ {[%clk 0:02:37]}  Ne7 {[%clk 0:02:01]} 14. O-O {[%clk 0:02:32]}  O-O {[%clk 0:02:00]} 15. Nc3 {[%clk 0:02:29]}  Bf5 {[%clk 0:01:53]} 16. Rad1 {[%clk 0:02:24]}  Re8 {[%clk 0:01:29]} 17. Qc4 {[%clk 0:02:24]}  Ng6 {[%clk 0:01:23]} 18. Rfe1 {[%clk 0:02:12]}  Rxe1+ {[%clk 0:01:12]} 19. Rxe1 {[%clk 0:02:13]}  Qd7 {[%clk 0:01:00]} 20. Rd1 {[%clk 0:01:34]}  Re8 {[%clk 0:00:44]} 21. Qf1 {[%clk 0:01:34]}  Ne4 {[%clk 0:00:38]} 22. Ne2 {[%clk 0:01:33]}  Ne5 {[%clk 0:00:32]} 23. Nfd4 {[%clk 0:01:30]}  Bg6 {[%clk 0:00:31]} 24. Nf4 {[%clk 0:01:30]}  Nf6 {[%clk 0:00:26]} 25. b3 {[%clk 0:01:20]}  Be4 {[%clk 0:00:26]} 26. Bxe4 {[%clk 0:00:09]}  Nxe4 {[%clk 0:00:26]} 27. Qg2 {[%clk 0:00:10]}  Nc3 {[%clk 0:00:22]} 28. Rc1 {[%clk 0:00:07]}  Nxa2 {[%clk 0:00:22]} 29. Re1 {[%clk 0:00:06]}  Nb4 {[%clk 0:00:21]} 30. h3 {[%clk 0:00:06]}  c5 {[%clk 0:00:21]} 31. dxc6 {[%clk 0:00:06]}  bxc6 {[%clk 0:00:22]} 32. g4 {[%clk 0:00:05]}  g6 {[%clk 0:00:22]} 33. Kh1 {[%clk 0:00:05]}  c5 {[%clk 0:00:21]} 34. Nde2 {[%clk 0:00:05]}  Ned3 {[%clk 0:00:19]} 35. Rd1 {[%clk 0:00:04]}  Ne5 {[%clk 0:00:13]} 36. Ng3 {[%clk 0:00:03]}  Nec6 {[%clk 0:00:13]} 37. Nd5 {[%clk 0:00:03]}  Nxd5 {[%clk 0:00:13]} 38. Qxd5 {[%clk 0:00:04]}  Nd4 {[%clk 0:00:14]} 39. Ne4 {[%clk 0:00:04]}  Re6 {[%clk 0:00:12]} 40. Nxc5 {[%clk 0:00:04]}  Qb5 {[%clk 0:00:09]} 41. Qa8+ {[%clk 0:00:03]}  Kg7 {[%clk 0:00:09]} 42. Nxe6+ {[%clk 0:00:03]}  Nxe6 {[%clk 0:00:10]} 43. Qd5 {[%clk 0:00:03]}  Qe2 {[%clk 0:00:09]} 44. Kg1 {[%clk 0:00:03]}  g5 {[%clk 0:00:07]} 45. Qxd6 {[%clk 0:00:01]}  Nf4 {[%clk 0:00:08]} 46. Qd4+ {[%clk 0:00:02]}  f6 {[%clk 0:00:08]} 47. Rd2 {[%clk 0:00:02]}  Qe1+ {[%clk 0:00:07]} 48. Kh2 {[%clk 0:00:02]}  Qf1 {[%clk 0:00:08]} 49. Qd7+ {[%clk 0:00:02]}  Kh6 {[%clk 0:00:09]} 50. Qb7 {[%clk 0:00:03]}  Qxh3+ {[%clk 0:00:08]} 51. Kg1 {[%clk 0:00:02]}  Qxg4+ {[%clk 0:00:09]} 52. Kf1 {[%clk 0:00:02]}  Qh3+ {[%clk 0:00:09]} 53. Kg1 {[%clk 0:00:03]}  Qe6 {[%clk 0:00:10]} 54. Qg2 {[%clk 0:00:00]}  Nxg2 {[%clk 0:00:10]} 0-1


[Site "https://www.chess.com"]

[Event "Titled Tuesday Blitz July 25 Late 2023"]
[White "Weetik, Vjacheslav"]
[Black "Pniaczek, Marek"]
[WhiteFideId "4153472"]
[BlackFideId "21800421"]
[WhiteElo "2667"]
[BlackElo "2484"]
[Result "1-0"]
[Round "4"]
[TimeControl "180+2"]
[Date "2023.07.25"]
[WhiteClock "0:00:59"]
[BlackClock "0:00:03"]
[Board "67"]

1. d4 {[%clk 0:02:59]}  Nf6 {[%clk 0:02:59]} 2. c4 {[%clk 0:02:58]}  e6 {[%clk 0:02:56]} 3. g3 {[%clk 0:02:58]}  d5 {[%clk 0:02:52]} 4. Nf3 {[%clk 0:02:58]}  Be7 {[%clk 0:02:52]} 5. Bg2 {[%clk 0:02:58]}  O-O {[%clk 0:02:53]} 6. O-O {[%clk 0:02:59]}  dxc4 {[%clk 0:02:53]} 7. Qc2 {[%clk 0:02:59]}  c6 {[%clk 0:02:53]} 8. Qxc4 {[%clk 0:02:57]}  b5 {[%clk 0:02:47]} 9. Qc2 {[%clk 0:02:55]}  Bb7 {[%clk 0:02:48]} 10. Nbd2 {[%clk 0:02:44]}  Qb6 {[%clk 0:02:36]} 11. a4 {[%clk 0:02:36]}  Nbd7 {[%clk 0:02:27]} 12. Nb3 {[%clk 0:02:23]}  c5 {[%clk 0:02:17]} 13. dxc5 {[%clk 0:02:19]}  Nxc5 {[%clk 0:02:17]} 14. Be3 {[%clk 0:02:19]}  Rac8 {[%clk 0:02:13]} 15. Rfc1 {[%clk 0:02:00]}  Nxb3 {[%clk 0:01:55]} 16. Qxb3 {[%clk 0:01:58]}  bxa4 {[%clk 0:01:19]} 17. Qxb6 {[%clk 0:01:57]}  axb6 {[%clk 0:01:18]} 18. Bxb6 {[%clk 0:01:57]}  Nd5 {[%clk 0:01:06]} 19. Bd4 {[%clk 0:01:55]}  Rxc1+ {[%clk 0:00:56]} 20. Rxc1 {[%clk 0:01:56]}  a3 {[%clk 0:00:48]} 21. bxa3 {[%clk 0:01:55]}  Bxa3 {[%clk 0:00:48]} 22. Rb1 {[%clk 0:01:56]}  Bc6 {[%clk 0:00:41]} 23. Ne5 {[%clk 0:01:56]}  Ba8 {[%clk 0:00:39]} 24. Ra1 {[%clk 0:01:40]}  Bd6 {[%clk 0:00:35]} 25. h3 {[%clk 0:01:33]}  h6 {[%clk 0:00:35]} 26. Ra7 {[%clk 0:01:27]}  Bxe5 {[%clk 0:00:33]} 27. Bxe5 {[%clk 0:01:27]}  Nb6 {[%clk 0:00:33]} 28. f3 {[%clk 0:01:19]}  Nc4 {[%clk 0:00:28]} 29. Bc3 {[%clk 0:01:16]}  Bd5 {[%clk 0:00:27]} 30. e4 {[%clk 0:01:15]}  Ba8 {[%clk 0:00:25]} 31. Kf2 {[%clk 0:01:14]}  Rc8 {[%clk 0:00:23]} 32. Bf1 {[%clk 0:01:05]}  Nb6 {[%clk 0:00:22]} 33. Bd4 {[%clk 0:01:03]}  Rc2+ {[%clk 0:00:10]} 34. Ke3 {[%clk 0:01:03]}  Rc1 {[%clk 0:00:03]} 35. Bxb6 {[%clk 0:00:59]} 1-0


[Site "https://www.chess.com"]